bitfinex/quotes_ETHUSD_20220311
["timestamp","ask_amount","ask_price","bid_price","bid_amount"]
[1647042310616,3.43718084,2568.1,2568.0,4.31664474]
[1647042310815,2.43718084,2568.1,2568.0,4.31664474]
[1647042311015,3.43718084,2568.1,2568.0,4.31664474]
[1647042311215,2.43718084,2568.1,2568.0,4.31664474]
[1647042311472,3.63188084,2568.1,2568.0,3.97889406]
[1647042311770,3.63188084,2568.1,2567.3,0.08936821]
[1647042311771,2.206,2568.0,2567.3,0.08936821]
[1647042311967,1.42451807,2567.7,2567.2,0.3894]
[1647042312168,1.42451807,2567.6,2567.2,0.3894]
[1647042312367,0.1947,2567.5,2567.2,0.3894]
[1647042312572,0.3,2567.6,2567.2,0.3894]
[1647042312573,0.4947,2567.6,2567.2,0.3894]
[1647042313174,0.4947,2567.6,2567.0,0.00397871]
[1647042313372,0.9743,2567.5,2567.0,0.00397871]
[1647042313574,1.94863,2567.5,2566.8,0.07336025]
[1647042313774,0.97431,2567.3,2566.8,0.07336025]
[1647042313974,0.9743095,2567.2,2567.0,0.00397856]
[1647042314173,1.2743095,2567.2,2567.0,0.00397856]
[1647042314373,1.0,2567.1,2567.0,0.00397856]
[1647042314772,1.0,2567.1,2566.4,0.07021542]
[1647042314773,1.3,2567.1,2566.4,0.07021542]
[1647042314977,3.41376349,2567.1,2566.2,1.61256817]
[1647042315216,2.6486248,2567.0,2566.9,0.00416187]
[1647042315412,3.6486248,2567.0,2566.9,0.00416187]
[1647042315615,5.5973748,2567.0,2566.9,0.00416187]
[1647042315817,5.7920748,2567.0,2566.9,0.00416187]
[1647042316015,9.7920748,2567.0,2566.9,0.00416187]
[1647042316213,0.97457,2566.5,2565.8,2.3947049]
[1647042316418,0.97457,2566.5,2566.1,0.01665264]
[1647042316419,1.80457,2566.5,2566.1,0.01665264]
[1647042316619,1.13,2566.5,2566.1,0.01665264]
[1647042317417,1.94911,2566.4,2566.2,0.00416224]
[1647042317620,4.29694551,2566.4,2566.2,0.00416224]
[1647042317821,1.05238687,2566.3,2566.2,0.00416224]
[1647042318320,1.05238687,2566.3,2565.8,0.01665145]
[1647042318321,2.64753473,2566.2,2565.8,0.01665145]
[1647042318522,3.62240473,2566.2,2565.5,0.0806053]
[1647042318719,4.1995193,2566.1,2565.7,0.01586896]
[1647042318951,0.97485,2566.0,2565.7,0.01586896]
[1647042319152,1.27485,2566.0,2565.7,0.01586896]
[1647042319651,1.27485,2566.0,2565.5,0.0806053]
[1647042320052,1.94967,2565.9,2565.5,0.0806053]
[1647042320254,0.97481,2565.8,2565.3,0.006054]
[1647042320457,1.94964,2565.8,2565.3,0.006054]
[1647042320656,0.3,2565.7,2565.3,0.006054]
[1647042321056,1.27485,2565.7,2565.3,0.006054]
[1647042322057,1.94967,2565.6,2565.3,0.006054]
[1647042322259,0.97483,2565.6,2565.3,0.006054]
[1647042322458,0.97483,2565.6,2565.4,0.00456641]
[1647042322912,2.32304434,2565.8,2565.6,0.7267522]
[1647042322913,0.97483,2565.8,2565.6,0.7267522]
[1647042323612,1.27483,2565.8,2565.6,0.7267522]
[1647042324008,0.97483,2565.8,2565.6,0.7267522]
[1647042324208,1.27483,2565.8,2565.6,0.7267522]
[1647042324611,0.97483,2565.8,2565.6,0.7267522]
[1647042324809,1.27483,2565.8,2565.6,0.73131849]
[1647042325610,1.27483,2565.8,2565.6,0.7267522]
[1647042325611,0.97483,2565.8,2565.6,0.7267522]
[1647042325812,1.27483,2565.8,2565.6,0.7267522]
[1647042326010,1.27483,2565.8,2565.6,0.73131849]
[1647042326857,0.97483,2565.8,2565.6,0.7267522]
[1647042327056,1.27483,2565.8,2565.6,0.73131849]
[1647042327458,0.97483,2565.8,2565.6,0.73131849]
[1647042327658,1.27483,2565.8,2565.6,0.73131849]
[1647042328057,0.97483,2565.8,2565.6,0.73131849]
[1647042328258,0.97483,2565.8,2565.6,0.7267522]
[1647042328259,1.27483,2565.8,2565.6,0.7267522]
[1647042328463,1.27483,2565.8,2565.6,0.73131849]
[1647042328660,0.97483,2565.8,2565.6,0.73131849]
[1647042328863,1.27483,2565.8,2565.6,0.73131849]
[1647042329260,0.97483,2565.8,2565.6,0.7267522]
[1647042329462,1.27483,2565.8,2565.6,0.73131849]
[1647042329861,0.97483,2565.8,2565.6,0.73131849]
[1647042330117,1.27483,2565.8,2565.6,0.73131849]
[1647042330509,0.97483,2565.8,2565.6,0.7267522]
[1647042330807,0.97483,2565.8,2565.6,0.73131849]
[1647042330808,1.27483,2565.8,2565.6,0.73131849]
[1647042331007,0.97483,2565.8,2565.6,0.73131849]
[1647042331213,0.97483,2565.8,2565.7,0.08595622]
[1647042333711,0.97462,2565.9,2565.7,0.08595622]
[1647042334857,0.97462,2565.9,2565.8,0.87869404]
[1647042342958,3.8982,2566.2,2565.9,0.72677668]
[1647042344059,3.8982,2566.2,2565.9,0.73074118]
[1647042344859,3.8982,2566.2,2565.9,0.72677668]
[1647042345402,3.8982,2566.2,2565.9,0.73100444]
[1647042346302,3.8982,2566.2,2565.9,0.72677668]
[1647042346503,0.97461,2566.1,2565.9,0.73100444]
[1647042346702,1.94924,2566.1,2565.9,0.73100444]
[1647042347306,1.94924,2566.1,2565.9,0.72677668]
[1647042347707,1.94924,2566.1,2565.9,0.73100452]
[1647042348709,1.94924,2566.1,2565.9,0.72677668]
[1647042348955,1.94924,2566.1,2565.9,0.73097366]
[1647042349756,1.94924,2566.1,2565.9,0.72677668]
[1647042349957,1.94924,2566.1,2565.9,2.68023366]
[1647042349958,0.9746,2566.1,2565.9,2.68023366]
[1647042350857,1.94923,2566.1,2565.9,2.67603668]
[1647042351259,1.94923,2566.1,2565.9,2.68023366]
[1647042352060,1.94923,2566.1,2565.9,2.67603668]
[1647042352461,1.94923,2566.1,2565.9,2.68023948]
[1647042353309,1.94923,2566.1,2565.9,2.67603668]
[1647042353515,1.94923,2566.1,2565.9,2.68023948]
[1647042353910,0.9746,2566.1,2565.9,2.68023948]
[1647042354514,0.9746,2566.1,2565.9,2.67603668]
[1647042354714,0.9746,2566.2,2566.0,1.59513469]
[1647042355312,2.27457,2566.3,2566.0,1.59513469]
[1647042355512,2.27457,2566.3,2566.1,0.97456]
[1647042355712,1.97457,2566.3,2566.1,0.97456]
[1647042356754,1.97457,2566.3,2566.2,1.59503908]
[1647042358057,1.0,2566.3,2566.2,1.59503908]
[1647042359359,1.0,2566.3,2566.2,1.58859529]
[1647042359967,1.0,2566.3,2566.1,0.97876165]
[1647042360208,2.94933,2566.3,2566.1,0.97876165]
[1647042360710,3.24933,2566.3,2566.1,0.97456]
[1647042360905,3.24933,2566.3,2566.1,0.97876165]
[1647042361307,4.2240098,2566.3,2566.1,0.97876165]
[1647042361805,4.2240098,2566.3,2566.1,0.97456]
[1647042362006,4.2240098,2566.3,2566.1,0.97876165]
[1647042362813,3.24933,2566.3,2566.1,0.97876165]
[1647042363009,3.24933,2566.3,2566.1,0.97456]
[1647042363208,3.24933,2566.3,2566.1,0.97876163]
[1647042363853,4.2239503,2566.3,2566.1,0.97876163]
[1647042364055,4.2239503,2566.3,2566.1,0.97456]
[1647042364455,4.2239503,2566.3,2566.1,0.97876163]
[1647042365456,4.2239503,2566.3,2566.1,0.97456]
[1647042365657,0.04542338,2566.2,2566.1,0.97876163]
[1647042366454,0.04542338,2566.2,2566.1,0.97456]
[1647042377614,0.04728625,2566.4,2566.1,0.97456]
[1647042378715,0.04728625,2566.4,2566.1,0.978522]
[1647042379263,1.99636625,2566.4,2566.2,1.59503265]
[1647042379561,1.99636625,2566.4,2566.2,2.56862564]
[1647042379759,1.99636625,2566.4,2566.2,0.9745]
[1647042381567,0.45610962,2566.6,2566.2,4.4745]
[1647042381568,0.97446,2566.6,2566.2,4.4745]
[1647042381764,0.97446,2566.6,2566.2,0.9745]
[1647042381963,3.89259461,2566.9,2566.2,0.9745]
[1647042382163,0.23949461,2566.9,2566.2,0.9745]
[1647042382362,0.04282363,2566.9,2566.2,0.9745]
[1647042382811,0.04282363,2566.9,2566.4,0.8382444]
[1647042383212,0.04282363,2566.9,2566.4,1.8126744]
[1647042383412,0.97438,2566.8,2566.4,1.8126744]
[1647042385115,0.97431,2567.0,2566.5,0.08418304]
[1647042385319,3.12461,2567.2,2566.7,0.07444859]
[1647042385320,1.176,2567.2,2566.7,0.07444859]
[1647042385615,9.05431807,2567.3,2566.7,0.07444859]
[1647042386115,3.42451807,2567.3,2566.7,0.07444859]
[1647042386361,0.97431,2567.2,2566.7,1.04873859]
[1647042386558,0.97431,2567.2,2566.8,0.08254854]
[1647042387664,0.97431,2567.2,2566.8,1.05687854]
[1647042388066,1.94864,2567.2,2566.8,1.05687854]
[1647042388264,5.76842435,2567.2,2566.8,1.05687854]
[1647042389166,0.97438,2567.1,2566.8,1.05687854]
[1647042389366,2.94876,2567.1,2566.8,1.05687854]
[1647042389566,2.94876,2567.1,2566.8,0.97433]
[1647042389567,1.94876,2567.1,2566.8,0.97433]
[1647042389766,10.74193242,2567.2,2566.7,0.97429]
[1647042389767,1.0,2566.9,2566.7,0.97429]
[1647042390611,1.3,2566.9,2566.7,0.97429]
[1647042391513,1.0,2566.8,2566.7,0.97429]
[1647042392412,1.0,2566.8,2566.6,1.94885]
[1647042392816,1.97447,2566.8,2566.6,1.94885]
[1647042393014,0.4119311,2567.0,2566.6,1.94885]
[1647042393316,0.04649145,2566.9,2566.6,1.94885]
[1647042393515,5.29012876,2567.2,2566.6,1.94885]
[1647042393712,3.81978435,2567.2,2566.7,0.09055415]
[1647042393966,3.81978435,2567.2,2566.8,0.08462736]
[1647042394168,0.97434,2567.1,2566.8,0.08462736]
[1647042394366,0.97436,2567.0,2566.8,0.08462736]
[1647042395065,0.97436,2567.0,2566.8,1.05901736]
[1647042395867,0.97436,2567.0,2566.8,0.97439]
[1647042398229,0.92436,2567.0,2566.9,1.09981316]
[1647042398430,0.92436,2567.0,2566.8,0.97439]
[1647042399629,4.42436,2567.0,2566.7,1.94869]
[1647042399830,6.8393931,2567.0,2566.7,1.94869]
[1647042400031,7.8393931,2567.0,2566.7,1.94869]
[1647042400234,8.1393931,2567.0,2566.7,1.94869]
[1647042400631,7.1649685,2567.0,2566.7,1.94869]
[1647042400833,6.8649685,2567.0,2566.7,1.94869]
[1647042403172,3.3649685,2567.0,2566.7,1.94869]
[1647042403373,2.3905685,2567.0,2566.7,1.94869]
[1647042403573,1.3905685,2567.0,2566.7,1.94869]
[1647042403774,0.4662085,2567.0,2566.7,1.94869]
[1647042404174,0.1662085,2567.0,2566.7,1.94869]
[1647042404378,0.3,2566.9,2566.7,1.94869]
[1647042404674,3.6662085,2567.0,2566.7,1.94869]
[1647042404875,4.6405585,2567.0,2566.7,1.94439296]
[1647042405126,5.6405585,2567.0,2566.7,1.94439296]
[1647042405517,2.1149585,2567.0,2566.7,1.94439296]
[1647042405717,1.1405585,2567.0,2566.7,1.94439296]
[1647042407118,2.1149285,2567.0,2566.7,1.94439296]
[1647042407317,5.6149285,2567.0,2566.7,1.94439296]
[1647042408220,6.6149285,2567.0,2566.7,1.94439296]
[1647042409463,8.03944657,2567.0,2566.7,1.94439296]
[1647042409661,9.01388527,2567.0,2566.7,1.94439296]
[1647042409861,0.3,2566.9,2566.7,1.94439296]
[1647042410463,1.32404066,2566.9,2566.7,1.94439296]
[1647042416561,2.74855873,2566.9,2566.7,1.94439296]
[1647042417162,1.32404066,2566.9,2566.7,1.94439296]
[1647042417366,1.42451807,2566.8,2566.6,0.97434]
[1647042417561,2.39896807,2566.8,2566.6,0.97434]
[1647042418768,0.97445,2566.8,2566.6,0.97434]
[1647042419974,2.39896807,2566.8,2566.6,0.97434]
[1647042420214,1.42451807,2566.7,2566.6,0.97434]
[1647042422315,2.42451807,2566.7,2566.6,0.97434]
[1647042423963,1.0,2566.7,2566.6,0.97434]
[1647042425064,2.42451807,2566.7,2566.6,0.97434]
[1647042426263,1.0,2566.7,2566.6,0.97434]
[1647042426864,2.42451807,2566.7,2566.6,0.97434]
[1647042427720,1.0,2566.7,2566.6,0.97434]
[1647042428525,2.42451807,2566.7,2566.6,0.97434]
[1647042428919,1.0,2566.7,2566.6,0.97434]
[1647042429622,1.0,2566.7,2566.6,0.97303519]
[1647042430621,2.39896807,2566.8,2566.6,0.97303519]
[1647042430823,2.39886807,2567.0,2566.6,0.97303519]
[1647042431022,1.42451807,2567.0,2566.6,0.97303519]
[1647042431966,0.97432,2566.9,2566.6,0.97303519]
[1647042433173,1.9487163,2566.9,2566.6,0.97303519]
[1647042433975,2.9231163,2566.9,2566.6,0.97303519]
[1647042434174,0.97438,2566.8,2566.6,0.97303519]
[1647042434574,2.39889807,2566.8,2566.6,0.97303519]
[1647042435213,1.42451807,2566.7,2566.6,0.97303519]
[1647042435714,2.42451807,2566.7,2566.6,0.97303519]
[1647042436916,1.0,2566.7,2566.6,0.97303519]
[1647042437116,2.42451807,2566.7,2566.6,0.97303519]
[1647042437516,1.0,2566.7,2566.6,0.97303519]
[1647042442364,2.42451807,2566.7,2566.6,0.97303519]
[1647042445323,1.0,2566.7,2566.6,0.97303519]
[1647042450822,2.42451807,2566.7,2566.6,0.97303519]
[1647042451021,1.0,2566.7,2566.6,0.96703222]
[1647042453324,2.69889807,2566.8,2566.6,0.96703222]
[1647042453726,2.39889807,2566.8,2566.6,0.96703222]
[1647042465314,1.42451807,2566.8,2566.6,0.96703222]
[1647042466416,2.39888807,2566.8,2566.6,0.96703222]
[1647042467114,0.97437,2566.8,2566.6,0.96703222]
[1647042467515,2.39888807,2566.8,2566.6,0.96703222]
[1647042467919,1.42451807,2566.7,2566.6,0.96703222]
[1647042472371,3.37332337,2566.8,2566.6,0.96703222]
[1647042472613,1.42451807,2566.7,2566.6,0.96703222]
[1647042473218,1.4320349,2566.7,2566.6,0.96703222]
[1647042475819,1.4320349,2566.7,2566.6,0.96609181]
[1647042476861,2.5388349,2566.7,2566.6,0.96609181]
[1647042477067,2.5388349,2566.7,2566.4,0.97436]
[1647042477263,2.40673653,2566.6,2566.4,0.97436]
[1647042477462,1.43221653,2566.5,2566.4,0.97436]
[1647042477669,1.43221653,2566.5,2566.3,0.97451]
[1647042477670,2.43221653,2566.5,2566.3,0.97451]
[1647042478568,0.97453,2566.4,2566.3,0.97451]
[1647042482011,0.97453,2566.4,2566.3,0.92451]
[1647042482012,2.17683,2566.4,2566.3,0.92451]
[1647042482215,4.88367653,2566.4,2566.2,0.97458]
[1647042482410,4.88367653,2566.4,2566.1,1.95305259]
[1647042482411,3.40683135,2566.3,2566.1,1.95305259]
[1647042482614,2.64968394,2566.2,2565.8,1.96521184]
[1647042482816,1.43215135,2565.9,2565.8,0.01593184]
[1647042483017,0.3,2566.0,2565.8,0.01593184]
[1647042483216,3.43180643,2566.0,2565.7,0.97481]
[1647042483419,0.97482,2565.7,2565.5,1.94946]
[1647042485776,0.97482,2565.7,2565.5,1.95402743]
[1647042488020,0.97482,2565.7,2565.5,1.94946]
[1647042488218,0.97482,2565.7,2565.5,1.95402743]
[1647042489219,0.97482,2565.7,2565.5,1.94946]
[1647042489421,0.97482,2565.7,2565.5,1.95402743]
[1647042490520,0.97482,2565.7,2565.5,1.94946]
[1647042490719,0.97482,2565.7,2565.5,1.95402743]
[1647042491562,0.97482,2565.7,2565.5,1.94946]
[1647042491764,0.97482,2565.7,2565.5,1.95402743]
[1647042492769,0.97482,2565.7,2565.5,1.94946]
[1647042492967,0.97482,2565.7,2565.5,1.95402743]
[1647042493970,0.97482,2565.7,2565.5,1.94946]
[1647042494169,0.97482,2565.7,2565.5,1.95394179]
[1647042495126,0.97482,2565.7,2565.5,1.94946]
[1647042495516,0.97482,2565.7,2565.5,1.95394179]
[1647042496318,0.97482,2565.7,2565.5,1.94946]
[1647042496718,0.97482,2565.7,2565.5,1.95394179]
[1647042497624,0.97482,2565.7,2565.5,1.94946]
[1647042497820,0.97482,2565.7,2565.5,1.95360999]
[1647042498864,0.97482,2565.7,2565.5,1.94946]
[1647042499164,0.97482,2565.7,2565.5,1.95360999]
[1647042499967,0.97482,2565.7,2565.5,1.94946]
[1647042500172,0.97482,2565.7,2565.5,1.95360999]
[1647042501268,0.97482,2565.7,2565.5,1.94946]
[1647042501469,0.97482,2565.7,2565.5,1.95363406]
[1647042502470,0.97482,2565.7,2565.5,1.94946]
[1647042502922,0.97482,2565.7,2565.5,1.95363406]
[1647042503521,0.97482,2565.7,2565.5,1.94946]
[1647042503820,0.97482,2565.7,2565.5,1.95363406]
[1647042504221,0.97482,2565.7,2565.5,1.95241278]
[1647042504920,0.97482,2565.7,2565.5,1.94823872]
[1647042505121,0.97482,2565.7,2565.5,1.95240736]
[1647042505921,0.97482,2565.7,2565.5,1.94823872]
[1647042506367,0.97482,2565.7,2565.5,1.95240736]
[1647042507269,0.97482,2565.7,2565.5,1.94823872]
[1647042507673,0.97482,2565.7,2565.5,1.95240736]
[1647042508371,0.97482,2565.7,2565.5,1.94823872]
[1647042508772,0.97482,2565.7,2565.5,1.95219962]
[1647042509573,0.97482,2565.7,2565.5,1.94823872]
[1647042509973,0.97482,2565.7,2565.5,1.95219962]
[1647042510815,0.97482,2565.7,2565.5,1.94823872]
[1647042511016,0.97482,2565.7,2565.5,1.95219962]
[1647042511917,0.97482,2565.7,2565.5,1.94823872]
[1647042512318,0.97482,2565.7,2565.5,1.95240049]
[1647042513120,0.97482,2565.7,2565.5,1.94823872]
[1647042513521,0.97482,2565.7,2565.5,1.95240049]
[1647042514364,0.97482,2565.7,2565.5,1.94823872]
[1647042514766,0.97482,2565.7,2565.5,1.95240049]
[1647042515666,0.97482,2565.7,2565.5,1.94823872]
[1647042515867,0.97482,2565.7,2565.5,1.95227395]
[1647042516768,3.5,2565.6,2565.5,1.94823872]
[1647042516968,3.5,2565.6,2565.5,0.00403523]
[1647042517166,7.45002,2565.6,2565.5,0.00403523]
[1647042517367,6.45002,2565.6,2565.5,0.00403523]
[1647042517614,7.45002,2565.6,2565.5,0.00403523]
[1647042518025,8.424967,2565.6,2565.3,0.006054]
[1647042518222,1.27496,2565.5,2565.4,0.00403525]
[1647042518423,4.77496,2565.5,2565.4,0.00403525]
[1647042518821,5.77496,2565.5,2565.4,0.00403525]
[1647042519222,5.77496,2565.5,2565.3,0.006054]
[1647042519421,5.77496,2565.5,2565.3,0.01001329]
[1647042519624,7.7248804,2565.5,2565.3,0.01001329]
[1647042519823,8.0248804,2565.5,2565.3,0.01001329]
[1647042520122,6.04991,2565.5,2565.3,0.01001329]
[1647042520321,6.04991,2565.5,2565.3,0.006054]
[1647042521122,6.04991,2565.5,2565.3,0.01001331]
[1647042521364,3.5,2565.4,2565.3,0.01001331]
[1647042521665,3.5,2565.4,2565.3,0.006054]
[1647042521872,3.5,2565.4,2565.3,0.01001331]
[1647042522871,3.5,2565.4,2565.3,0.006054]
[1647042523072,4.5,2565.4,2565.3,0.006054]
[1647042524869,1.0,2565.4,2565.3,0.006054]
[1647042527921,1.0,2565.4,2565.3,0.00517415]
[1647042544174,0.97506,2565.3,2565.2,0.00271021]
[1647042544372,0.97506,2565.3,2565.1,1.59575315]
[1647042544671,0.97506,2565.2,2565.0,2.14471]
[1647042544872,0.97506,2565.2,2565.0,1.94991]
[1647042548319,0.97506,2565.2,2565.0,1.95447773]
[1647042549222,0.97506,2565.2,2565.0,1.94991]
[1647042550622,0.97506,2565.2,2565.0,1.95144614]
[1647042551024,2.92528,2565.2,2565.0,1.95144614]
[1647042551667,0.97506,2565.2,2565.0,1.94991]
[1647042551870,1.95012,2565.2,2565.0,1.95144614]
[1647042552068,1.95012,2565.2,2565.0,2.99467041]
[1647042552772,1.95012,2565.2,2565.0,2.99313427]
[1647042552971,1.95012,2565.2,2565.0,2.99767765]
[1647042553974,1.95012,2565.2,2565.0,2.99313427]
[1647042554176,1.95012,2565.2,2565.0,2.99767765]
[1647042554378,1.95012,2565.2,2565.0,1.95445338]
[1647042556422,1.95012,2565.2,2565.0,1.94991]
[1647042556622,1.95012,2565.2,2565.0,1.95432885]
[1647042557623,1.95012,2565.2,2565.0,1.94991]
[1647042557824,1.95012,2565.2,2565.0,1.95432885]
[1647042558868,1.95012,2565.2,2565.0,1.94991]
[1647042559070,1.95012,2565.2,2565.0,1.95432885]
[1647042560071,1.95012,2565.2,2565.0,1.94991]
[1647042560275,1.95012,2565.2,2565.0,1.95433305]
[1647042561275,1.95012,2565.2,2565.0,1.94991]
[1647042561474,1.95012,2565.2,2565.0,1.95433305]
[1647042561676,3.3819394,2565.2,2565.0,1.95433305]
[1647042562476,3.3819394,2565.2,2565.0,1.94991]
[1647042562723,3.3819394,2565.2,2565.0,1.95433305]
[1647042563525,3.3819394,2565.2,2565.0,1.94991]
[1647042563925,3.3819394,2565.2,2565.0,1.95403893]
[1647042564326,3.3819394,2565.2,2565.0,1.95317231]
[1647042564928,1.95012,2565.2,2565.0,1.94904338]
[1647042565125,3.3819394,2565.2,2565.0,1.95317231]
[1647042565325,1.95012,2565.2,2565.0,1.95317231]
[1647042566026,1.95012,2565.2,2565.0,1.94904338]
[1647042566226,1.95012,2565.2,2565.0,1.95317231]
[1647042566672,0.97506,2565.2,2565.0,1.95317231]
[1647042566872,1.4318194,2565.3,2565.2,0.0014342]
[1647042574870,1.97494,2565.4,2565.2,0.0014342]
[1647042576071,1.97494,2565.4,2565.2,0.00561787]
[1647042576269,1.43133552,2565.3,2565.2,0.00561787]
[1647042576670,3.40627552,2565.4,2565.2,0.00561787]
[1647042576870,3.40627552,2565.4,2565.2,0.0014342]
[1647042577922,1.97494,2565.4,2565.2,0.0014342]
[1647042578318,1.97494,2565.4,2565.2,0.00561755]
[1647042579320,3.40627552,2565.4,2565.2,0.0014342]
[1647042579519,3.40627552,2565.4,2565.2,0.00561755]
[1647042580123,1.43133552,2565.3,2565.2,0.00561755]
[1647042580425,1.43133552,2565.3,2565.2,0.0014342]
[1647042580820,1.43133552,2565.3,2565.2,0.00561755]
[1647042581665,1.43133552,2565.3,2565.2,0.0014342]
[1647042584374,3.40627552,2565.4,2565.2,0.0014342]
[1647042584573,1.43133552,2565.3,2565.2,0.0014342]
[1647042585823,3.40627552,2565.4,2565.2,0.0014342]
[1647042586623,3.40627552,2565.4,2565.2,0.00440248]
[1647042586824,1.43133552,2565.3,2565.2,0.00440248]
[1647042587623,1.43133552,2565.3,2565.2,0.00024184]
[1647042590573,3.40627552,2565.4,2565.2,0.00024184]
[1647042591574,3.40627552,2565.4,2565.2,0.00420922]
[1647042592377,3.40627552,2565.4,2565.2,0.00024184]
[1647042592821,3.40627552,2565.4,2565.2,0.00421598]
[1647042593623,3.26967657,2565.6,2565.2,0.00024184]
[1647042593922,3.26967657,2565.6,2565.2,0.00422891]
[1647042594321,2.9250793,2565.5,2565.2,0.00422891]
[1647042594522,0.97494,2565.4,2565.2,0.00422891]
[1647042594923,0.97494,2565.4,2565.2,0.00024184]
[1647042595122,0.97494,2565.4,2565.2,0.00422888]
[1647042596024,0.97494,2565.4,2565.2,0.00024184]
[1647042596468,0.97494,2565.4,2565.2,0.00422778]
[1647042597271,0.97494,2565.4,2565.2,0.00024184]
[1647042597473,2.43499076,2565.7,2565.2,0.00024184]
[1647042597674,2.54019076,2565.7,2565.2,0.00422646]
[1647042597876,0.3,2565.7,2565.2,0.00422646]
[1647042598075,0.97494,2565.5,2565.2,0.00422646]
[1647042598477,0.97494,2565.4,2565.2,0.00422646]
[1647042598678,0.97494,2565.4,2565.3,0.00398455]
[1647042598877,1.0,2565.4,2565.3,0.00398455]
[1647042599276,0.15320223,2565.8,2565.4,2.7]
[1647042599479,3.3619,2566.3,2565.5,3.5]
[1647042599677,1.38308555,2566.4,2566.2,0.89734734]
[1647042599878,4.12297825,2566.3,2566.2,0.89734734]
[1647042600162,4.12297825,2566.3,2566.2,0.77727277]
[1647042600326,4.12297825,2566.3,2566.2,0.06972938]
[1647042601126,4.12297825,2566.3,2566.2,3.56972938]
[1647042601527,5.55447945,2566.3,2566.2,0.06972938]
[1647042601925,1.4315012,2566.3,2566.2,0.06972938]
[1647042602129,1.4315012,2566.3,2566.2,4.66535522]
[1647042602327,1.4315012,2566.3,2566.2,1.16535522]
[1647042602731,1.4315012,2566.4,2566.2,1.16535522]
[1647042602931,1.4315012,2566.4,2566.3,0.06995626]
[1647042603733,1.4315012,2566.5,2566.3,0.06995626]
[1647042603982,1.4315012,2566.5,2566.4,0.07208488]
[1647042606181,1.4315012,2566.5,2566.0,10.0]
[1647042606182,1.90541762,2566.5,2566.0,10.0]
[1647042606381,1.42745782,2566.3,2566.0,10.0]
[1647042606780,1.90541762,2566.5,2566.0,10.0]
[1647042606781,1.42745782,2566.2,2566.0,10.0]
[1647042606982,3.37685782,2566.2,2566.0,10.0]
[1647042607638,1.42745782,2566.1,2566.0,10.0]
[1647042608834,3.37685782,2566.2,2566.0,10.0]
[1647042609933,1.9494,2566.2,2566.0,10.0]
[1647042610635,3.37685782,2566.2,2566.0,10.0]
[1647042611033,1.42745782,2566.2,2566.0,10.0]
[1647042611675,2.40204782,2566.3,2566.0,10.0]
[1647042612576,0.97461,2566.2,2566.0,10.0]
[1647042612776,1.94926,2566.2,2566.0,10.0]
[1647042612975,3.37671782,2566.2,2566.0,10.0]
[1647042613377,6.87671782,2566.2,2566.0,10.0]
[1647042613579,3.37671782,2566.2,2566.0,10.0]
[1647042615431,1.72745782,2566.3,2566.0,10.0]
[1647042615629,1.72745782,2566.3,2566.1,1.94908]
[1647042615830,1.42745782,2566.3,2566.1,1.94908]
[1647042616230,4.92745782,2566.3,2566.1,1.94908]
[1647042616430,4.92745782,2566.2,2566.1,1.94908]
[1647042616631,1.42745782,2566.2,2566.1,1.58474542]
[1647042616832,4.92745782,2566.2,2566.1,1.58474542]
[1647042617033,3.5,2566.2,2566.1,1.58474542]
[1647042617431,3.5,2566.2,2566.0,10.0]
[1647042617633,2.39989319,2566.1,2566.0,10.0]
[1647042619580,2.40002517,2566.1,2566.0,10.0]
[1647042619883,5.90002517,2566.1,2566.0,10.0]
[1647042620882,2.40002517,2566.1,2566.0,2.12474161]
[1647042621089,2.40002517,2566.1,2565.4,0.00398524]
[1647042621090,2.7,2566.0,2565.4,0.00398524]
[1647042621285,1.42489553,2565.8,2565.4,0.00398524]
[1647042621490,1.42489553,2565.5,2565.2,0.00024184]
[1647042621882,1.72489553,2565.5,2565.2,0.00024184]
[1647042622283,1.42489553,2565.4,2565.2,0.00024184]
[1647042622488,2.7,2565.2,2564.4,0.00116791]
[1647042622737,2.7,2565.2,2564.2,15.1968]
[1647042622738,0.59822649,2564.9,2564.2,13.2386086]
[1647042622939,0.86212649,2564.9,2564.2,12.08884069]
[1647042623136,1.46212649,2564.9,2564.2,12.08884069]
[1647042623340,0.98041379,2564.7,2564.2,12.08884069]
[1647042623542,0.98041379,2564.7,2564.2,12.0]
[1647042623543,0.9753873,2564.6,2564.2,12.0]
[1647042623739,4.4753873,2564.6,2564.2,12.0]
[1647042624039,0.9753873,2564.6,2564.2,12.0]
[1647042624237,5.4753873,2564.6,2564.2,12.0]
[1647042624439,5.4753873,2564.6,2563.8,0.00116791]
[1647042624440,3.19423016,2564.3,2563.8,0.00116791]
[1647042624642,0.04877812,2564.1,2563.6,0.00116791]
[1647042624838,1.2116,2564.1,2563.3,0.00116791]
[1647042625043,3.54313366,2564.0,2563.2,0.53124345]
[1647042625237,4.84313366,2564.0,2563.4,0.04035806]
[1647042625443,7.77031366,2564.0,2563.9,0.004253]
[1647042625640,11.05886481,2564.0,2563.9,0.004253]
[1647042625840,11.35886481,2564.0,2563.9,0.004253]
[1647042626240,11.35886481,2564.0,2563.5,0.01701454]
[1647042626476,11.35886481,2564.0,2563.4,0.04035806]
[1647042626477,0.97571,2563.9,2563.8,0.00438765]
[1647042626677,8.5835112,2563.9,2563.8,0.00438765]
[1647042626876,9.8835112,2563.9,2563.8,0.00438765]
[1647042627076,10.25394932,2563.9,2563.8,8.765e-05]
[1647042627279,10.25394932,2563.9,2562.4,0.084071]
[1647042627280,14.7,2563.8,2562.4,0.084071]
[1647042627484,0.012896,2563.2,2562.4,0.034071]
[1647042627685,12.773496,2563.2,2562.4,0.034071]
[1647042627882,15.595,2563.1,2562.4,0.034071]
[1647042628082,1.06209028,2562.8,2562.4,0.034071]
[1647042628283,3.995,2562.7,2562.2,0.0461834]
[1647042628483,3.995,2562.7,2562.1,0.0566607]
[1647042628484,1.01251972,2562.5,2562.1,0.0566607]
[1647042628684,0.97663,2562.3,2561.7,0.0885171]
[1647042628885,0.195,2562.2,2561.7,0.0885171]
[1647042629083,2.8,2562.1,2561.7,0.0885171]
[1647042629282,0.81548218,2561.9,2561.7,0.0885171]
[1647042629487,1.9533,2561.7,2561.6,0.0466073]
[1647042629684,1.9533,2561.7,2561.4,0.0150423]
[1647042629885,2.9633,2561.7,2561.4,0.0150423]